Cogmind - Beta 9.3 @@@ ROGUE MODE // 2020.01.07 @ 00:40:21 // Winter2019/RPGLIKE Player: PyroDawn Result: Destroyed by B-99 Colossus with Multirail Performance ------------- Evolutions (9) 4500 Regions Visited (11) 2200 Robots Destroyed (0) 0 Value Destroyed (30) 30 Prototype IDs (19) 380 Alien Tech Used (0) 0 Bonus (7906) 7906 TOTAL SCORE: 15016 Bonus ------- Pacifist 7906 Cogmind --------- Core Integrity 0/2750 Matter 169/300 Energy 169/170 System Corruption 0% Temperature Cool (1) Movement Flying (35) Location -1/Access Parts ------- > --- POWER (1) -------- Micro Fission Core > --- PROPULSION (1) --- Electron Diverter > --- UTILITY (3) ------ Advanced Signal Interpreter Improved Maneuvering Thrusters Phase Shifter > --- WEAPON (1) ------- Heavy Flail > --- INVENTORY (1) ---- Improved Stasis Canceller Peak State ------------ > --- POWER ------------ Micro Fission Core > --- PROPULSION ------- Cooled Nuclear Pulse Thruster > --- UTILITY ---------- Advanced Signal Interpreter Advanced Reaction Control System System Shield > --- WEAPON ----------- Z-bomb Delivery System > --- INVENTORY -------- (None) [Rating: 41] Favorites ----------- Power Micro Fission Core Power Core Micro Fission Core Propulsion Cooled Nuclear Pulse Thruster Flight Unit Cooled Nuclear Pulse Thruster Utility Advanced Signal Interpreter Device Maneuvering Thrusters Processor Advanced Signal Interpreter Hackware System Shield Weapon Heavy Flail Launcher Z-bomb Delivery System Special Weapon Mining Laser Impact Weapon Heavy Flail Special Melee Weapon Advanced Datajack Build | -11 -10 -9 -8 -7 -6 -5 -4 -3 -2 -2 -1 ------- Run | Scr Mat Mat Mat Fac Fac Fac Fac Res Res Tes Acc Slots Evolved 2 | . 1 . . . . 1 . . . . . Power . | . . . . . . . . . . . . Propulsion . | . . . . . . . . . . . . Utility 2 | . 1 . . . . 1 . . . . . Weapon . | . . . . . . . . . . . . Parts Attached 28 | . 2 2 3 4 . 3 1 4 1 3 5 Power 3 | . . . 1 . . 1 . . . . 1 Engine . | . . . . . . . . . . . . Core 3 | . . . 1 . . 1 . . . . 1 Reactor . | . . . . . . . . . . . . Propulsion 6 | . . 1 . 2 . 1 . 1 . 1 . Treads . | . . . . . . . . . . . . Leg . | . . . . . . . . . . . . Wheel . | . . . . . . . . . . . . Hover . | . . . . . . . . . . . . Flight 6 | . . 1 . 2 . 1 . 1 . 1 . Utility 14 | . 2 . 2 2 . 1 . 2 1 . 4 Device 11 | . 1 . 1 2 . . . 2 1 . 4 Storage . | . . . . . . . . . . . . Processor 2 | . 1 . 1 . . . . . . . . Hackware 1 | . . . . . . 1 . . . . . Protection . | . . . . . . . . . . . . Artifact . | . . . . . . . . . . . . Weapon 5 | . . 1 . . . . 1 1 . 2 . Energy Gun . | . . . . . . . . . . . . Energy Cannon . | . . . . . . . . . . . . Ballistic Gun . | . . . . . . . . . . . . Ballistic Cannon . | . . . . . . . . . . . . Launcher 1 | . . . . . . . . . . 1 . Special Weapon 1 | . . 1 . . . . . . . . . Impact Weapon 2 | . . . . . . . . 1 . 1 . Slashing Weapon . | . . . . . . . . . . . . Piercing Weapon . | . . . . . . . . . . . . Special Melee Weapon 1 | . . . . . . . 1 . . . . Unidentified Prototypes 3 | . . . . . . 1 . . . 2 . Parts Lost 2 | . . . 1 . . . . . . . 1 Power . | . . . . . . . . . . . . Propulsion . | . . . . . . . . . . . . Utility 1 | . . . . . . . . . . . 1 Weapon 1 | . . . 1 . . . . . . . . Highest Loss Streak 1 | . . . 1 . . . . . . . 1 Average Slot Usage (%) 87 | . 22 58 98 80 80 82 85 100 100 100 99 Core 14 | . . . 20 20 20 16 16 16 16 16 16 Flight 15 | . . 11 20 20 20 16 16 16 16 16 16 Device 19 | . 14 20 20 20 20 16 16 16 16 16 25 Processor 17 | . 8 20 20 20 20 16 16 16 16 16 16 Hackware 8 | . . . . . . 12 16 16 16 16 6 Special Weapon 2 | . . 7 18 . . . . . . . . Impact Weapon 6 | . . . . . . . . 6 16 16 16 Special Melee Weapon 1 | . . . . . . . 2 9 . . . Naked Turns 18 | . 18 . . . . . . . . . . Heaviest Build 11 | . 1 2 7 6 6 6 7 9 10 10 11 Greatest Support 23 | 3 13 15 15 17 16 19 19 19 19 23 23 Greatest Overweight (x) . | . . . . . . . . . . . . Average Overweight (x) . | . . . . . . . . . . . . Largest Inventory Capacity 1 | . . . . . . . . . . . 1 Average Capacity . | . . . . . . . . . . . . Most Carried 1 | . . . . . . . . . . . 1 Average Carried . | . . . . . . . . . . . . Final Capacity 1 | . . . . . . . . . . . 1 Final Carried 1 | . . . . . . . . . . . 1 Class Distribution -------------------- 61% | Wizard-Mutant 21% | Hacker-Scout 15% | Hacker-Mutant Dominant Class ---------------- Hacker-Scout | -10/Materials Hacker-Scout | -9/Materials Hacker-Scout | -8/Materials Hacker-Mutant | -7/Factory Hacker-Mutant | -6/Factory Wizard-Mutant | -5/Factory Wizard-Mutant | -4/Factory Wizard-Mutant | -3/Research Wizard-Mutant | -2/Research Wizard-Mutant | -2/Testing Wizard-Mutant | -1/Access Resources | -11 -10 -9 -8 -7 -6 -5 -4 -3 -2 -2 -1 ----------- Run | Scr Mat Mat Mat Fac Fac Fac Fac Res Res Tes Acc Matter Collected 334 | 200 . 35 20 . . . . . 79 . . Remotely . | . . . . . . . . . . . . Salvage Created . | . . . . . . . . . . . . Parts . | . . . . . . . . . . . . Haulers Intercepted . | . . . . . . . . . . . . Recyclers Shooed . | . . . . . . . . . . . . Parts Field Recycled . | . . . . . . . . . . . . Retrieved Matter . | . . . . . . . . . . . . Parts Self-Destructed . | . . . . . . . . . . . . Prevented . | . . . . . . . . . . . . Kills | -11 -10 -9 -8 -7 -6 -5 -4 -3 -2 -2 -1 ------- Run | Scr Mat Mat Mat Fac Fac Fac Fac Res Res Tes Acc Combat Hostiles Destroyed . | . . . . . . . . . . . . Classes Destroyed . | . . . . . . . . . . . . Best Kill Streak . | . . . . . . . . . . . . Combat Bots Only . | . . . . . . . . . . . . Max Kills in Single Turn . | . . . . . . . . . . . . Gunslinging . | . . . . . . . . . . . . Exploded . | . . . . . . . . . . . . Melee . | . . . . . . . . . . . . Uniques/NPCs Destroyed . | . . . . . . . . . . . . Combat | -11 -10 -9 -8 -7 -6 -5 -4 -3 -2 -2 -1 -------- Run | Scr Mat Mat Mat Fac Fac Fac Fac Res Res Tes Acc Damage Taken 3125 | . 154 82 344 242 . 90 106 143 74 321 1569 Core 2751 | . 151 71 300 208 . 75 97 132 68 289 1360 Absorbed by Shields . | . . . . . . . . . . . . Redirected to Core 1324 | . 8 33 150 110 . 56 30 40 22 118 757 Core Remaining (%) 48 | 100 74 63 13 39 39 42 48 40 . 30 . Volleys Fired . | . . . . . . . . . . . . Largest . | . . . . . . . . . . . . Hottest . | . . . . . . . . . . . . Shots Fired . | . . . . . . . . . . . . Gun . | . . . . . . . . . . . . Cannon . | . . . . . . . . . . . . Launcher . | . . . . . . . . . . . . Special . | . . . . . . . . . . . . Kinetic . | . . . . . . . . . . . . Thermal . | . . . . . . . . . . . . Explosive . | . . . . . . . . . . . . Electromagnetic . | . . . . . . . . . . . . Robot Hit Streak . | . . . . . . . . . . . . Robot Miss Streak . | . . . . . . . . . . . . Penetration Max . | . . . . . . . . . . . . Secondary Targets . | . . . . . . . . . . . . Shots Hit Robots . | . . . . . . . . . . . . Core Hits 1 | . 1 . . . . . . . . . . Critical Hits . | . . . . . . . . . . . . Critical Kills . | . . . . . . . . . . . . Critical Parts Destroyed . | . . . . . . . . . . . . Melee Attacks 13 | . . . . . . . . 1 . 7 5 Impact 13 | . . . . . . . . 1 . 7 5 Slashing . | . . . . . . . . . . . . Piercing . | . . . . . . . . . . . . Sneak Attacks . | . . . . . . . . . . . . Combat Hostiles . | . . . . . . . . . . . . Follow-up Attacks . | . . . . . . . . . . . . Damage Inflicted 4 | . 4 . . . . . . . . . . Guns . | . . . . . . . . . . . . Cannons . | . . . . . . . . . . . . Explosions . | . . . . . . . . . . . . Melee . | . . . . . . . . . . . . Ramming 4 | . 4 . . . . . . . . . . Kinetic . | . . . . . . . . . . . . Thermal . | . . . . . . . . . . . . Explosive . | . . . . . . . . . . . . Electromagnetic . | . . . . . . . . . . . . Impact . | . . . . . . . . . . . . Slashing . | . . . . . . . . . . . . Piercing . | . . . . . . . . . . . . Highest Corruption . | . . . . . . . . . . . . Average Corruption . | . . . . . . . . . . . . Corruption Purged . | . . . . . . . . . . . . Overload Shots . | . . . . . . . . . . . . Overflow Damage . | . . . . . . . . . . . . Projectiles . | . . . . . . . . . . . . Explosions . | . . . . . . . . . . . . Melee . | . . . . . . . . . . . . Knockbacks . | . . . . . . . . . . . . Impact . | . . . . . . . . . . . . Kinetic . | . . . . . . . . . . . . Secondary . | . . . . . . . . . . . . Self-Inflicted Damage 2 | . 2 . . . . . . . . . . Shots . | . . . . . . . . . . . . Rammed 1 | . 1 . . . . . . . . . . Targets Rammed 1 | . 1 . . . . . . . . . . Kicked . | . . . . . . . . . . . . Crushed . | . . . . . . . . . . . . Highest Temperature 20 | . . . 20 7 . . 9 7 . . 1 Average Temperature 8 | . . . 13 5 . . 9 5 . . 1 Received Heat Transfer 423 | . . 45 135 72 . 27 45 51 . . 48 Siege Activations . | . . . . . . . . . . . . Robots Corrupted . | . . . . . . . . . . . . Combat Hostiles . | . . . . . . . . . . . . Parts Fried . | . . . . . . . . . . . . Impact Corruptions . | . . . . . . . . . . . . Robots Melted . | . . . . . . . . . . . . Combat Hostiles . | . . . . . . . . . . . . Parts Melted . | . . . . . . . . . . . . Heat Transferred . | . . . . . . . . . . . . Parts Sabotaged . | . . . . . . . . . . . . Parts Stolen . | . . . . . . . . . . . . Parts Stripped . | . . . . . . . . . . . . Power Chain Reactions . | . . . . . . . . . . . . Missiles Intercepted . | . . . . . . . . . . . . Alert | -11 -10 -9 -8 -7 -6 -5 -4 -3 -2 -2 -1 ------- Run | Scr Mat Mat Mat Fac Fac Fac Fac Res Res Tes Acc Peak Influence 469 | . 33 96 212 243 15 97 106 198 216 253 469 Average Influence 144 | . 16 32 127 168 5 44 65 127 147 184 320 Maximum Alert Level 2 | . . . 1 1 . . . . 1 1 2 Low Security (%) 73 | 100 100 100 81 52 100 100 100 100 81 63 15 Level 1 23 | . . . 18 47 . . . . 18 36 62 Level 2 3 | . . . . . . . . . . . 21 Level 3 . | . . . . . . . . . . . . Level 4 . | . . . . . . . . . . . . Level 5 . | . . . . . . . . . . . . High Security . | . . . . . . . . . . . . Max Security . | . . . . . . . . . . . . Squads Dispatched 19 | . . 3 4 4 . 1 1 1 2 . 3 Investigation 6 | . . 1 1 1 . . . 1 1 . 1 Extermination 1 | . . . . . . . . . . . 1 Reinforcement 12 | . . 2 3 3 . 1 1 . 1 . 1 Assault . | . . . . . . . . . . . . Garrison . | . . . . . . . . . . . . Intercept . | . . . . . . . . . . . . Construction Impeded . | . . . . . . . . . . . . Haulers Reinforced . | . . . . . . . . . . . . Stealth | -11 -10 -9 -8 -7 -6 -5 -4 -3 -2 -2 -1 --------- Run | Scr Mat Mat Mat Fac Fac Fac Fac Res Res Tes Acc Distress Signals 3 | . 1 . . . . 1 . . . . 1 Communications Jammed . | . . . . . . . . . . . . Distress Signals . | . . . . . . . . . . . . Times Spotted 154 | . 6 12 29 18 . 11 9 16 4 6 43 Peak Tracking Total 23 | . 6 9 23 8 . 10 8 13 3 6 18 Tactical Retreats 19 | . . 1 2 3 . . 1 3 . . 9 Traps | -11 -10 -9 -8 -7 -6 -5 -4 -3 -2 -2 -1 ------- Run | Scr Mat Mat Mat Fac Fac Fac Fac Res Res Tes Acc Traps Triggered 6 | . . . 1 . . . . 2 1 . 2 Indirectly . | . . . . . . . . . . . . Trap Hack Attempts . | . . . . . . . . . . . . Triggered . | . . . . . . . . . . . . Disarmed . | . . . . . . . . . . . . Reprogrammed . | . . . . . . . . . . . . Reused . | . . . . . . . . . . . . Traps Extracted . | . . . . . . . . . . . . Installed . | . . . . . . . . . . . . Triggered . | . . . . . . . . . . . . Machines | -11 -10 -9 -8 -7 -6 -5 -4 -3 -2 -2 -1 ---------- Run | Scr Mat Mat Mat Fac Fac Fac Fac Res Res Tes Acc Machines Disabled 3 | . . . . . . . . . . 3 . Max in Single Turn 1 | . . . . . . . . . . 1 . Garrison Access 3 | . . . . 1 . 1 . 1 . . . Energy Cycler 1 | . . . . . . . . . . . 1 Machines Sabotaged . | . . . . . . . . . . . . Garrisons Compromised . | . . . . . . . . . . . . Overloaded Fab Kills . | . . . . . . . . . . . . Fab Network Shutdowns . | . . . . . . . . . . . . Hacking | -11 -10 -9 -8 -7 -6 -5 -4 -3 -2 -2 -1 --------- Run | Scr Mat Mat Mat Fac Fac Fac Fac Res Res Tes Acc Machines Accessed 41 | . 3 6 3 7 2 2 3 4 1 1 9 Terminals 30 | . 3 5 3 5 2 . 3 3 . 1 5 Fabricators 5 | . . . . 1 . 1 . . . . 3 Repair Stations . | . . . . . . . . . . . . Recycling Units . | . . . . . . . . . . . . Scanalyzers 3 | . . 1 . . . . . . 1 . 1 Garrison Access 3 | . . . . 1 . 1 . 1 . . . Total Hacks 209 | . 17 34 20 39 10 7 18 16 2 6 40 Successful 135 | . 11 18 16 30 7 5 11 8 1 4 24 Failed 74 | . 6 16 4 9 3 2 7 8 1 2 16 Catastrophic 8 | . . 3 . 1 1 . . 1 . . 2 Database Lockouts . | . . . . . . . . . . . . Manual 163 | . 15 32 17 29 7 6 15 10 2 3 27 Terminals 179 | . 17 33 20 34 10 . 18 15 . 6 26 Fabricators 22 | . . . . 4 . 6 . . . . 12 Repair Stations . | . . . . . . . . . . . . Recycling Units . | . . . . . . . . . . . . Scanalyzers 5 | . . 1 . . . . . . 2 . 2 Garrison Access 3 | . . . . 1 . 1 . 1 . . . Terminal Hacks 50 | . 4 6 7 10 3 . 4 4 . 1 11 Record 3 | . . . . . . . . 2 . . 1 Part Schematic 4 | . . . 1 1 1 . . . . . 1 Robot Analysis 5 | . . . . . 1 . . 1 . . 3 Prototype ID Bank 5 | . 1 1 1 . . . 1 . . . 1 Level Access Points 7 | . 1 1 1 1 1 . 1 . . . 1 Machine Index 3 | . . . 1 1 . . . . . . 1 Terminal Index 4 | . 1 1 1 . . . 1 . . . . Alert Level 1 | . . . . 1 . . . . . . . Unreport Threat 6 | . 1 2 . 2 . . . . . . 1 Dispatch Records 1 | . . . . 1 . . . . . . . Recall Investigation 2 | . . . . 2 . . . . . . . Hauler Manifests 4 | . . 1 1 1 . . . 1 . . . Registered Components 2 | . . . . . . . 1 . . . 1 Registered Prototypes 1 | . . . . . . . . . . . 1 Zone Layout 1 | . . . 1 . . . . . . . . Protovariant Controls 1 | . . . . . . . . . . 1 . Fabricator Hacks 2 | . . . . 2 . . . . . . . Load Schematic 1 | . . . . 1 . . . . . . . Build 1 | . . . . 1 . . . . . . . Repair Station Hacks . | . . . . . . . . . . . . Recycling Unit Hacks . | . . . . . . . . . . . . Scanalyzer . | . . . . . . . . . . . . Garrison Access Hacks 3 | . . . . 1 . 1 . 1 . . . Seal Access 3 | . . . . 1 . 1 . 1 . . . Unauthorized Hacks 192 | . 18 28 20 38 8 10 17 9 3 6 35 Terminals 64 | . 7 11 9 16 4 . 7 3 . 3 4 Track 17 | . 2 3 3 4 1 . 2 1 . 1 . Assimilate 1 | . . . . 1 . . . . . . . Botnet 25 | . 3 4 3 5 1 . 3 1 . 1 4 Disrupt 9 | . 1 1 2 3 1 . 1 . . . . Operators 12 | . 1 3 1 3 1 . 1 1 . 1 . Fabricators 13 | . . . . 1 . 4 . . . . 8 Report 3 | . . . . . . 1 . . . . 2 Prioritize 3 | . . . . . . 1 . . . . 2 Siphon 5 | . . . . 1 . 1 . . . . 3 Haulers 2 | . . . . . . 1 . . . . 1 Repair Stations . | . . . . . . . . . . . . Recycling Units . | . . . . . . . . . . . . Scanalyzers 3 | . . 1 . . . . . . 1 . 1 Extract 3 | . . 1 . . . . . . 1 . 1 Garrison Access . | . . . . . . . . . . . . Data Cores Recovered . | . . . . . . . . . . . . Used . | . . . . . . . . . . . . Hacking Detections 34 | . 3 5 3 5 2 1 3 3 . 1 8 Full Trace Events 1 | . . . . 1 . . . . . . . Feedback Events . | . . . . . . . . . . . . Feedback Blocked . | . . . . . . . . . . . . Robot Schematics Acquired . | . . . . . . . . . . . . Robots Built . | . . . . . . . . . . . . Matter . | . . . . . . . . . . . . Time . | . . . . . . . . . . . . Total Robot Build Rating . | . . . . . . . . . . . . Part Schematics Acquired 40 | . . 10 1 1 1 . . . 25 . 2 Parts Built 1 | . . . . 1 . . . . . . . Matter 139 | . . . . 139 . . . . . . . Time 49 | . . . . 49 . . . . . . . Total Part Build Rating 2 | . . . . 2 . . . . . . . Parts Repaired . | . . . . . . . . . . . . Time . | . . . . . . . . . . . . Parts Recycled . | . . . . . . . . . . . . Recycled Matter . | . . . . . . . . . . . . Retrieved Matter . | . . . . . . . . . . . . Retrieved Components . | . . . . . . . . . . . . Parts Scanalyzed . | . . . . . . . . . . . . Part Schematics Acquired . | . . . . . . . . . . . . Parts Damaged . | . . . . . . . . . . . . Bothacking | -11 -10 -9 -8 -7 -6 -5 -4 -3 -2 -2 -1 ------------ Run | Scr Mat Mat Mat Fac Fac Fac Fac Res Res Tes Acc Used RIF Installer . | . . . . . . . . . . . . Robots Hacked . | . . . . . . . . . . . . Non-combat . | . . . . . . . . . . . . Combat . | . . . . . . . . . . . . Robot Hacks Applied . | . . . . . . . . . . . . Relay Couplers Released . | . . . . . . . . . . . . Robots Rewired . | . . . . . . . . . . . . Allies Hacked . | . . . . . . . . . . . . Hacks Repelled . | . . . . . . . . . . . . Allies | -11 -10 -9 -8 -7 -6 -5 -4 -3 -2 -2 -1 -------- Run | Scr Mat Mat Mat Fac Fac Fac Fac Res Res Tes Acc Total Allies . | . . . . . . . . . . . . Largest Group . | . . . . . . . . . . . . Highest-Rated Group . | . . . . . . . . . . . . Highest-Rated Ally . | . . . . . . . . . . . . Total Orders . | . . . . . . . . . . . . Ally Attacks . | . . . . . . . . . . . . Total Damage . | . . . . . . . . . . . . Kills . | . . . . . . . . . . . . Allies Corrupted . | . . . . . . . . . . . . Allies Melted . | . . . . . . . . . . . . Intel | -11 -10 -9 -8 -7 -6 -5 -4 -3 -2 -2 -1 ------- Run | Scr Mat Mat Mat Fac Fac Fac Fac Res Res Tes Acc Robot Analysis Total 5 | . . . . . 1 . . 1 . . 3 Derelict Logs Recovered . | . . . . . . . . . . . . Drone Launches . | . . . . . . . . . . . . Drone Recoveries . | . . . . . . . . . . . . Exploration | -11 -10 -9 -8 -7 -6 -5 -4 -3 -2 -2 -1 ------------- Run | Scr Mat Mat Mat Fac Fac Fac Fac Res Res Tes Acc Turns Passed 1611 | 16 65 141 118 223 40 127 124 255 85 129 288 Spaces Moved 3935 | 31 114 313 284 547 114 348 232 698 209 292 753 Core 276 | 31 114 129 . . . . . 1 1 . . Treads . | . . . . . . . . . . . . Legs . | . . . . . . . . . . . . Wheels . | . . . . . . . . . . . . Hover . | . . . . . . . . . . . . Flight 3659 | . . 184 284 547 114 348 232 697 208 292 753 Fastest Speed 35 | 50 50 40 40 35 35 35 35 35 35 35 35 Average Speed 37 | 50 50 44 40 37 35 35 35 35 35 35 35 Slowest Speed 50 | 50 50 50 40 40 35 35 35 50 50 35 35 Overloaded Moves . | . . . . . . . . . . . . Propulsion Burnouts . | . . . . . . . . . . . . Robots Hopped 86 | . . 1 10 12 1 8 4 15 4 8 23 Cave-ins Triggered . | . . . . . . . . . . . . Exploration Rate (%) 20 | 3 22 44 37 18 5 13 9 27 5 36 25 Regions Visited 11 Branch Regions 1 Pre-discovered Areas . | . . . . . . . . . . . . Known Exits Taken 10 | . 1 1 1 1 1 1 1 1 1 1 . Unknown Exits Taken 1 | 1 . . . . . . . . . . . Scrap Searched . | . . . . . . . . . . . . Spaces Dug 6 | . . . . . . . . 1 . 3 2 Terrain Destroyed 6 | . . . . . . . . 1 . 3 2 Melee 6 | . . . . . . . . 1 . 3 2 Projectile . | . . . . . . . . . . . . AOE . | . . . . . . . . . . . . Actions | -11 -10 -9 -8 -7 -6 -5 -4 -3 -2 -2 -1 --------- Run | Scr Mat Mat Mat Fac Fac Fac Fac Res Res Tes Acc Total 3960 | 30 120 313 277 551 112 344 269 689 216 296 743 Wait 54 | . 4 . . 9 . . 41 . . . . Move 3767 | 30 113 310 264 527 111 331 223 669 201 276 712 Hop 71 | . . 1 9 7 1 8 4 13 3 7 18 Pick Up 1 | . . . . . . . . . . . 1 Fast Attach 21 | . 2 2 1 2 . 2 1 4 . 3 4 Attach . | . . . . . . . . . . . . Detach . | . . . . . . . . . . . . Swap 7 | . . . 2 2 . 1 . . 1 . 1 Drop 15 | . . . 1 4 . 2 . 2 1 3 2 Fire . | . . . . . . . . . . . . Melee 13 | . . . . . . . . 1 . 7 5 Ram 1 | . 1 . . . . . . . . . . Kick . | . . . . . . . . . . . . Crush . | . . . . . . . . . . . . Escape Stasis 10 | . . . . . . . . . 10 . . Rewire . | . . . . . . . . . . . . Trap . | . . . . . . . . . . . . Miscellaneous . | . . . . . . . . . . . . Route ------- -11/Scrapyard -10/Materials (discovered 3 exits: *Mat x3) -9/Materials (discovered 4 exits: *Mat x3 / *Min) -8/Materials (discovered 3 exits: *Fac x3) -7/Factory (discovered 5 exits: *Fac x4 / *Sto) -6/Factory (discovered 4 exits: *Fac x4) -5/Factory -4/Factory (discovered 4 exits: *Res x4) -3/Research -2/Research -2/Testing -1/Access (discovered 1 exit: Sur) History --------- Turn | Location | Event 3 | -11/Scrapyard | Discovered new exit (range 16) 17 | -11/Scrapyard | Entered Materials 21 | -10/Materials | Upgraded with Utility slot (x1) 22 | -10/Materials | Identified exit to Materials 82 | -10/Materials | Entered another Materials area 84 | -9/Materials | Reached level 2 170 | -9/Materials | Discovered new exit (range 7) 173 | -9/Materials | Identified exit to Mines 180 | -9/Materials | Identified exit to Materials 223 | -9/Materials | Entered another Materials area 225 | -8/Materials | Reached level 3 231 | -8/Materials | Identified exit to Factory 304 | -8/Materials | Core integrity fell below 50% 325 | -8/Materials | Build established: Hacker-Scout 341 | -8/Materials | Core integrity fell below 20% 341 | -8/Materials | Entered Factory 342 | -7/Factory | Core integrity fell below 50% 342 | -7/Factory | Core integrity fell below 20% 343 | -7/Factory | Reached level 4 378 | -7/Factory | Discovered new exit (range 15) 383 | -7/Factory | Identified exit to Storage 414 | -7/Factory | Identified exit to Factory 476 | -7/Factory | Fabricated Imp. Flight Unit (x1) 564 | -7/Factory | Entered another Factory area 565 | -6/Factory | Core integrity fell below 50% 566 | -6/Factory | Reached level 5 573 | -6/Factory | Identified exit to Factory 604 | -6/Factory | Reached level 6 604 | -6/Factory | Entered another Factory area 605 | -5/Factory | Core integrity fell below 50% 606 | -5/Factory | Reached level 7 634 | -5/Factory | Upgraded with Utility slot (x1) 723 | -5/Factory | Discovered new exit (range 15) 731 | -5/Factory | Identified exit to Factory 731 | -5/Factory | Entered another Factory area 732 | -4/Factory | Core integrity fell below 50% 733 | -4/Factory | Reached level 8 814 | -4/Factory | Identified exit to Research 855 | -4/Factory | Entered Research 856 | -3/Research | Core integrity fell below 50% 857 | -3/Research | Reached level 9 857 | -3/Research | Reached level 10 933 | -3/Research | Build established: Wizard-Mutant 956 | -3/Research | Spotted B-86 Titan 1096 | -3/Research | Discovered new exit (range 16) 1102 | -3/Research | Identified exit to Research 1110 | -3/Research | Entered another Research area 1111 | -2/Research | Core integrity fell below 50% 1112 | -2/Research | Reached level 11 1112 | -2/Research | Reached level 12 1189 | -2/Research | Discovered new exit (range 12) 1194 | -2/Research | Identified exit to Testing 1195 | -2/Research | Entered Testing 1197 | -2/Testing | Reached level 13 1245 | -2/Testing | Found Prototype Launcher 1245 | -2/Testing | Identified Z-bomb Delivery System 1258 | -2/Testing | Spotted PX-AETPCJRVWW 1276 | -2/Testing | Discovered new exit (range 14) 1324 | -2/Testing | Identified exit to Access 1324 | -2/Testing | Reached level 14 1324 | -2/Testing | Entered Access 1325 | -1/Access | Core integrity fell below 50% 1326 | -1/Access | Reached level 15 1387 | -1/Access | Core integrity fell below 20% 1493 | -1/Access | Identified exit to Surface 1518 | -1/Access | Energy Cycler disabled 1581 | -1/Access | Spotted B-99 Colossus 1593 | -1/Access | Spotted B-99 Colossus 1611 | -1/Access | Spotted B-99 Colossus 1612 | -1/Access | Destroyed by B-99 Colossus with Multirail Last Messages --------------- Downloaded coordinate data. >>Prototypes Downloading prototype IDs... Exp. Biometal Heavy Treads Point Singularity Launcher Thermal Barrier Imp. Q-thruster >>Alert(Purge) Purged threat record, alert level lowered. 01583_ Slug penetrates Terminal. 01583_ Slug penetrates Wall. 01583_ Penetrated by Slug. 01583_ Slug penetrates Terminal. 01584_ O-32 Director uses terminal to summon reinforcements. 01584_ ALERT: Hostiles spotted, dispatching reinforcements to Terminal A005. 01584_ O-32 Director locks terminal. 01584_ O-32 Director cleans trojans from system. 01606_ Slug penetrates Wall. 01611_ Penetrated by Slug. 01611_ Slug penetrates Door. Map ----- +----------------------------------------------------+ | ?????????????????????????????????????????????????? | | ?????????????????????????????????????????????????? | | ?????????????????????????????????????????????????? | | ?????????????????????????????????????????????????? | | ?????????????????????????????????????????????????? | | ?????????????????????????????????????????????????? | | ?????????????????????????????????????????????????? | | ?????????????????????????????????????????????????? | | ?????????????????????????????????????????????????? | | ?????????????????????????????????????????????????? | | ??????????????????????? ??????????????????????? | | ??????????????????????# ??????????????????????? | | ??????????????????????+ +?????????????????????? | | ??????????????????????# #?????????????????????? | | ??????????????????????# #?????????????????????? | | ??????????????????????# #?????????????????????? | | ??????????????????????# #?????????????????????? | | ??????????????????????# #?????????????????????? | | ??????????????????????# #?????????????????????? | | ????????????######????# #?????????????????????? | | ????????????" ???#A #?????????????????????? | | ????????????" BB ??# #?????????????????????? | | ????????????" BB ;## #?????????????????????? | | ????????????" #?????????????????????? | | ????????????" #?????????????????????? | | ????